bitfinex-derivatives/quotes_SOLF0:USTF0_20260312
["timestamp","ask_amount","ask_price","bid_price","bid_amount"]
[1773329872956,20.39938829,86.539,86.458,19.24185453]
[1773329873157,20.39938829,86.526,86.459,19.24185453]
[1773329874258,20.39938829,86.549,86.461,19.24185453]
[1773329875557,10.399,86.537,86.461,19.24185453]
[1773329876064,10.399,86.537,86.402,20.831]
[1773329876065,20.39938829,86.549,86.484,19.24185453]
[1773329876358,9.15976863,86.56,86.484,19.24185453]
[1773329876554,20.39938829,86.559,86.484,19.24185453]
[1773329877257,20.39938829,86.549,86.484,19.24185453]
[1773329877657,20.39938829,86.549,86.486,19.24185453]
[1773329878459,20.39938829,86.549,86.488,19.24185453]
[1773329879466,20.39938829,86.549,86.473,19.24185453]
[1773329880062,20.39938829,86.538,86.463,19.24185453]
[1773329880664,10.402,86.518,86.463,19.24185453]
[1773329881365,20.39938829,86.54,86.465,19.24185453]
[1773329882465,20.39938829,86.529,86.45,19.24185453]
[1773329883361,20.39938829,86.512,86.45,19.24185453]
[1773329883558,20.39938829,86.509,86.43,9.15976863]
[1773329883758,20.39938829,86.509,86.431,19.24185453]
[1773329884260,9.15976863,86.51,86.431,19.24185453]
[1773329884261,20.39938829,86.49,86.431,19.24185453]
[1773329884469,20.39938829,86.489,86.411,19.24185453]
[1773329884661,9.15976863,86.51,86.325,162.169]
[1773329884662,20.39938829,86.469,86.391,19.24185453]
[1773329884858,10.41,86.448,86.392,10.417]
[1773329885371,10.41,86.449,86.392,10.417]
[1773329885570,20.39938829,86.448,86.391,19.24185453]
[1773329885771,20.39938829,86.448,86.383,10.418]
[1773329885968,20.39938829,86.448,86.374,29.66085453]
[1773329886175,20.39938829,86.448,86.351,40.06]
[1773329886176,20.39938829,86.448,86.375,19.24185453]
[1773329886366,10.411,86.438,86.375,19.24185453]
[1773329886670,20.39938829,86.438,86.375,19.24185453]
[1773329887072,10.412,86.428,86.375,19.24185453]
[1773329887764,20.39938829,86.438,86.375,19.24185453]
[1773329888167,10.412,86.428,86.375,19.24185453]
[1773329888363,20.39938829,86.438,86.375,19.24185453]
[1773329888572,9.15976863,86.45,86.375,19.24185453]
[1773329889578,29.55915692,86.45,86.375,19.24185453]
[1773329889777,10.411,86.436,86.375,19.24185453]
[1773329890074,20.39938829,86.435,86.375,19.24185453]
[1773329890276,20.39938829,86.435,86.355,19.24185453]
[1773329890477,40.06,86.471,86.355,19.24185453]
[1773329890478,20.39938829,86.418,86.355,19.24185453]
[1773329890676,20.39938829,86.436,86.355,19.24185453]
[1773329890981,20.39938829,86.429,86.355,19.24185453]
[1773329891882,10.413,86.421,86.36,10.42]
[1773329892377,20.39938829,86.419,86.347,40.06]
[1773329892582,30.81538829,86.398,86.347,40.06]
[1773329892780,20.39938829,86.397,86.337,19.24185453]
[1773329892976,20.39938829,86.397,86.321,19.24185453]
[1773329893281,20.39938829,86.382,86.321,19.24185453]
[1773329893876,20.39938829,86.382,86.316,10.426]
[1773329893877,20.39938829,86.382,86.324,29.66685453]
[1773329894779,20.39938829,86.402,86.334,19.24185453]
[1773329894979,20.39938829,86.399,86.334,19.24185453]
[1773329895984,10.417,86.392,86.334,19.24185453]
[1773329896482,30.81638829,86.392,86.334,19.24185453]
[1773329896885,20.39938829,86.391,86.334,19.24185453]
[1773329897980,20.39938829,86.391,86.343,10.422]
[1773329898689,9.15976863,86.42,86.352,19.24185453]
[1773329898690,20.39938829,86.409,86.352,19.24185453]
[1773329900290,20.39938829,86.409,86.331,19.24185453]
[1773329900984,19.49848993,86.407,86.349,10.422]
[1773329901184,19.49848993,86.399,86.281,20.60012905]
[1773329901385,19.49848993,86.399,86.252,162.306]
[1773329901386,19.49848993,86.379,86.291,20.60012905]
[1773329902088,10.419,86.369,86.306,10.427]
[1773329902287,19.49848993,86.379,86.307,20.60012905]
[1773329903291,19.49848993,86.361,86.307,20.60012905]
[1773329903685,19.49848993,86.38,86.307,20.60012905]
[1773329903986,19.49848993,86.419,86.331,20.60012905]
[1773329904289,19.49848993,86.419,86.351,20.60012905]
[1773329904886,19.49848993,86.419,86.371,10.419]
[1773329906590,19.49848993,86.419,86.38,10.418]
[1773329906992,19.49848993,86.419,86.351,20.60012905]
[1773329907194,19.49848993,86.419,86.371,10.419]
[1773329907891,19.49848993,86.416,86.351,20.60012905]
[1773329908794,19.49848993,86.416,86.369,10.419]
[1773329909088,19.49848993,86.416,86.351,20.60012905]
[1773329909594,19.49848993,86.416,86.302,20.855]
[1773329909595,19.49848993,86.416,86.333,20.60012905]
[1773329909994,19.49848993,86.406,86.333,20.60012905]
[1773329910595,19.49848993,86.406,86.367,10.42]
[1773329910791,19.49848993,86.425,86.351,20.60012905]
[1773329910992,19.49848993,86.444,86.351,20.60012905]
[1773329911296,19.49848993,86.444,86.353,20.60012905]
[1773329911692,19.49848993,86.469,86.391,20.60012905]
[1773329912191,19.49848993,86.469,86.411,20.60012905]
[1773329913294,19.49848993,86.469,86.415,10.414]
[1773329913996,10.405,86.487,86.411,20.60012905]
[1773329914196,29.90348993,86.487,86.411,20.60012905]
[1773329914396,19.49848993,86.486,86.411,20.60012905]
[1773329914897,19.49848993,86.486,86.433,10.412]
[1773329916195,19.49848993,86.486,86.428,20.60012905]
[1773329916590,19.49848993,86.483,86.41,9.15976863]
[1773329916798,19.49848993,86.483,86.309,486.597]
[1773329916799,19.49848993,86.469,86.372,20.60012905]
[1773329917192,19.49848993,86.458,86.401,10.416]
[1773329917392,19.49848993,86.429,86.331,20.60012905]
[1773329917796,19.49848993,86.418,86.331,20.60012905]
[1773329917993,19.49848993,86.429,86.331,20.60012905]
[1773329918495,19.49848993,86.429,86.32,40.08]
[1773329918496,29.91048993,86.429,86.369,10.419]
[1773329918697,19.49848993,86.428,86.369,10.419]
[1773329919795,19.49848993,86.428,86.377,10.418]
[1773329920496,9.15976863,86.42,86.357,20.60012905]
[1773329920893,19.49848993,86.425,86.357,20.60012905]
[1773329921795,9.15976863,86.45,86.357,20.60012905]
[1773329921796,19.49848993,86.423,86.361,10.42]
[1773329922298,19.49848993,86.423,86.357,20.60012905]
[1773329923198,19.49848993,86.422,86.349,40.08]
[1773329923393,19.49848993,86.409,86.338,20.60012905]
[1773329923593,10.415,86.405,86.338,20.60012905]
[1773329923789,29.18561515,86.405,86.338,20.60012905]
[1773329924297,18.77061515,86.396,86.323,18.00847196]
[1773329925491,18.77061515,86.393,86.323,18.00847196]
[1773329925993,18.77061515,86.39,86.323,18.00847196]
[1773329927098,10.418,86.385,86.326,10.425]
[1773329927499,29.18861515,86.385,86.326,10.425]
[1773329927997,18.77061515,86.384,86.334,10.424]
[1773329928797,18.77061515,86.384,86.341,10.423]
[1773329928995,18.77061515,86.402,86.323,18.00847196]
[1773329929501,18.77061515,86.399,86.323,18.00847196]
[1773329930396,17.87130384,86.394,86.331,10.424]
[1773329931101,17.87130384,86.387,86.338,10.423]
[1773329931701,17.87130384,86.387,86.347,10.422]
[1773329933296,17.87130384,86.387,86.354,10.421]
[1773329933796,17.87130384,86.387,86.346,10.422]
[1773329934198,9.19226456,86.4,86.324,17.83572332]
[1773329934700,17.87130384,86.405,86.324,17.83572332]
[1773329935001,17.87130384,86.403,86.354,10.421]
[1773329936105,17.87130384,86.401,86.354,10.421]
[1773329937407,10.416,86.4,86.354,10.421]
[1773329937602,17.87130384,86.399,86.354,10.421]
[1773329938005,17.87130384,86.417,86.345,17.83572332]
[1773329939405,17.87130384,86.407,86.36,10.42]
[1773329939909,17.87130384,86.407,86.368,10.419]
[1773329940405,17.87130384,86.407,86.323,20.85]
[1773329940406,17.87130384,86.399,86.326,17.83572332]
[1773329940611,17.87130384,86.393,86.345,10.422]
[1773329941105,17.87130384,86.412,86.346,17.83572332]
[1773329941703,17.87130384,86.457,86.371,17.83572332]
[1773329941911,17.87130384,86.457,86.373,17.83572332]
[1773329943106,17.87130384,86.457,86.372,60.939]
[1773329943107,17.87130384,86.457,86.398,17.83572332]
[1773329943313,10.407,86.471,86.398,17.83572332]
[1773329943614,17.87130384,86.463,86.398,17.83572332]
[1773329944110,9.19226456,86.48,86.374,40.1]
[1773329944111,17.87130384,86.459,86.375,17.83572332]
[1773329944914,17.87130384,86.45,86.4,10.416]
[1773329945410,17.87130384,86.439,86.375,17.83572332]
[1773329945617,17.87130384,86.439,86.36,17.83572332]
[1773329946217,17.87130384,86.436,86.36,17.83572332]
[1773329946809,17.87130384,86.431,86.381,10.418]
[1773329947015,17.87130384,86.431,86.36,17.83572332]
[1773329948016,17.87130384,86.431,86.381,10.418]
[1773329948410,17.87130384,86.429,86.373,10.419]
[1773329949515,17.87130384,86.429,86.381,10.418]
[1773329950013,17.87130384,86.429,86.36,17.83572332]
[1773329950210,17.87130384,86.429,86.38,10.418]
[1773329951411,17.87130384,86.429,86.387,10.417]
[1773329951614,17.87130384,86.446,86.377,17.83572332]
[1773329952214,17.87130384,86.446,86.404,10.415]
[1773329953117,17.87130384,86.446,86.411,10.414]
[1773329953815,17.87130384,86.446,86.402,10.415]
[1773329954421,9.19226456,86.46,86.393,17.83572332]
[1773329954615,27.0635684,86.46,86.393,17.83572332]
[1773329954813,17.87130384,86.459,86.393,17.83572332]
[1773329955316,17.87130384,86.445,86.395,10.416]
[1773329957525,17.87130384,86.444,86.395,10.416]
[1773329957826,17.87130384,86.444,86.387,10.417]
[1773329958025,17.87130384,86.444,86.386,17.83572332]
[1773329959022,17.87130384,86.444,86.399,10.416]
[1773329959320,17.87130384,86.479,86.391,17.83572332]
[1773329959526,17.87130384,86.479,86.414,17.83572332]
[1773329960627,16.96900033,86.499,86.416,16.69555878]
[1773329960933,16.96900033,86.499,86.431,16.69555878]
[1773329961428,16.96900033,86.539,86.461,16.69555878]
[1773329961627,16.96900033,86.539,86.46,9.19226456]
[1773329961628,16.96900033,86.556,86.477,16.69555878]
[1773329961830,16.96900033,86.579,86.481,16.69555878]
[1773329962132,16.96900033,86.579,86.501,16.69555878]
[1773329962325,16.96900033,86.584,86.501,16.69555878]
[1773329962926,40.08,86.616,86.521,16.69555878]
[1773329963129,0.00012047,86.585,86.541,16.69555878]
[1773329964035,0.00012047,86.585,86.554,27.09255878]
[1773329964339,0.00012047,86.585,86.533,16.69555878]
[1773329964732,0.00012047,86.585,86.558,16.69555878]
[1773329965035,0.00012047,86.585,86.539,16.69555878]
[1773329965230,0.00012047,86.585,86.551,10.397]
[1773329965436,0.00012047,86.585,86.552,16.69555878]
[1773329966528,0.00012047,86.585,86.523,16.69555878]
[1773329966733,16.9691208,86.585,86.523,16.69555878]
[1773329966933,16.96900033,86.579,86.523,16.69555878]
[1773329967230,0.00012047,86.585,86.512,40.06]
[1773329967231,0.00012047,86.585,86.571,16.69555878]
[1773329967434,16.96900033,86.645,86.573,16.69555878]
[1773329967637,16.96900033,86.645,86.581,16.69555878]
[1773329967838,16.96900033,86.639,86.556,16.69555878]
[1773329968227,16.96900033,86.639,86.557,27.09255878]
[1773329968431,16.96900033,86.639,86.558,16.69555878]
[1773329968931,16.96900033,86.658,86.571,16.69555878]
[1773329969132,16.96900033,86.682,86.591,16.69555878]
[1773329969434,161.368,86.754,86.571,40.06]
[1773329969435,16.96900033,86.709,86.636,16.69555878]
[1773329970639,26.16126489,86.73,86.651,16.69555878]
[1773329970940,16.96900033,86.727,86.651,16.69555878]
[1773329971136,16.96900033,86.748,86.661,16.69555878]
[1773329971335,16.96900033,86.748,86.641,40.04]
[1773329971336,16.96900033,86.808,86.721,16.69555878]
[1773329971536,161.162,86.865,86.721,16.69555878]
[1773329971537,16.96900033,86.796,86.721,16.69555878]
[1773329971938,18.97494901,86.818,86.721,16.69555878]
[1773329972132,16.96900033,86.818,86.731,16.69555878]
[1773329972344,16.96900033,86.798,86.731,16.69555878]
[1773329972643,9.19226456,86.81,86.732,16.69555878]
[1773329973135,16.96900033,86.822,86.737,16.69555878]
[1773329973339,0.00012047,86.797,86.737,16.69555878]
[1773329973536,9.19226456,86.88,86.737,16.69555878]
[1773329973537,16.96900033,86.865,86.79,16.69555878]
[1773329973738,16.96900033,86.865,86.761,16.69555878]
[1773329973945,16.96900033,86.865,86.781,16.69555878]
[1773329974137,10.362,86.849,86.781,16.69555878]
[1773329974342,16.96900033,86.865,86.781,16.69555878]
[1773329975150,16.96900033,86.888,86.801,16.69555878]
[1773329975445,16.96900033,86.849,86.779,16.69555878]
[1773329975639,16.96900033,86.849,86.761,16.69555878]
[1773329975949,16.96900033,86.869,86.763,16.69555878]
[1773329976144,9.19226456,86.9,86.801,16.69555878]
[1773329976439,9.19226456,86.86,86.772,10.371]
[1773329976641,9.19226456,86.88,86.731,16.69555878]
[1773329976841,16.96900033,86.829,86.731,16.69555878]
[1773329977043,16.96900033,86.825,86.733,16.69555878]
[1773329977341,16.96900033,86.846,86.771,16.69555878]
[1773329977537,9.19226456,86.86,86.771,16.69555878]
[1773329977943,16.96900033,86.859,86.771,16.69555878]
[1773329978139,16.96900033,86.855,86.771,16.69555878]
[1773329978344,9.19226456,86.84,86.771,16.69555878]
[1773329978535,16.96900033,86.839,86.752,16.69555878]
[1773329979146,16.96900033,86.819,86.752,16.69555878]
[1773329979540,16.96900033,86.799,86.733,39.96]
[1773329980143,16.96900033,86.799,86.73,16.69555878]
[1773329980441,39.96,86.855,86.73,16.69555878]
[1773329980442,16.96900033,86.824,86.731,16.69555878]
[1773329980638,16.96900033,86.848,86.751,16.69555878]
[1773329980838,16.96900033,86.848,86.752,16.69555878]
[1773329981039,16.96900033,86.848,86.754,16.69555878]
[1773329981245,9.19226456,86.85,86.771,16.69555878]
[1773329981448,9.19226456,86.85,86.773,16.69555878]
[1773329981744,10.362,86.849,86.773,16.69555878]
[1773329982149,9.19226456,86.87,86.775,16.69555878]
[1773329982345,9.19226456,86.87,86.777,16.69555878]
[1773329982641,9.19226456,86.89,86.806,16.69555878]
[1773329982842,16.96900033,86.889,86.806,16.69555878]
[1773329983044,26.16126489,86.87,86.806,16.69555878]
[1773329983436,9.19226456,86.89,86.806,16.69555878]
[1773329983647,9.19226456,86.89,86.811,16.69555878]
[1773329983849,10.355,86.906,86.828,15.3244119]
[1773329984153,15.83049136,86.909,86.828,15.3244119]
[1773329984355,10.355,86.903,86.828,15.3244119]
[1773329984546,10.355,86.903,86.83,15.3244119]
[1773329984840,15.83049136,86.909,86.83,15.3244119]
[1773329985549,9.08768917,86.89,86.81,15.3244119]
[1773329985850,15.83049136,86.889,86.81,15.3244119]
[1773329986047,10.36,86.865,86.789,15.3244119]
[1773329986246,15.83049136,86.864,86.79,15.3244119]
[1773329986447,10.36,86.863,86.79,15.3244119]
[1773329986648,15.83049136,86.864,86.79,15.3244119]
[1773329986844,9.08768917,86.87,86.79,15.3244119]
[1773329987051,15.83049136,86.886,86.807,15.3244119]
[1773329987746,10.358,86.885,86.809,15.3244119]
[1773329988247,26.18749136,86.886,86.811,15.3244119]
[1773329989447,10.359,86.877,86.811,15.3244119]
[1773329989651,9.08768917,86.89,86.824,15.3244119]
[1773329990346,10.355,86.904,86.826,16.57694003]
[1773329990550,10.355,86.904,86.828,16.57694003]
[1773329991448,10.357,86.893,86.828,16.57694003]
[1773329991650,9.08768917,86.91,86.828,16.57694003]
[1773329992041,16.23457612,86.909,86.828,16.57694003]
[1773329992245,160.935,86.987,86.83,16.57694003]
[1773329992246,16.23457612,86.925,86.83,16.57694003]
[1773329992453,16.23457612,86.925,86.841,16.57694003]
[1773329992644,10.353,86.922,86.843,26.93894003]
[1773329992844,16.23457612,86.941,86.844,16.57694003]
[1773329993050,16.23457612,86.96,86.861,16.57694003]
[1773329993245,16.23457612,86.96,86.898,10.356]
[1773329993450,9.08768917,86.97,86.896,16.57694003]
[1773329993851,10.348,86.969,86.896,16.57694003]
[1773329994257,16.23457612,86.979,86.896,16.57694003]
[1773329994746,16.23457612,86.959,86.875,16.57694003]
[1773329994946,9.08768917,86.94,86.875,16.57694003]
[1773329995347,16.23457612,86.959,86.875,16.57694003]
[1773329995656,10.349,86.954,86.875,16.57694003]
[1773329996257,25.32226529,86.94,86.876,10.359]
[1773329996458,16.23457612,86.939,86.854,16.57694003]
[1773329997053,10.351,86.938,86.877,10.358]
[1773329997350,9.08768917,86.95,86.878,16.57694003]
[1773329997550,16.23457612,86.949,86.878,16.57694003]
[1773329997747,9.08768917,86.93,86.855,16.57694003]
[1773329998046,16.23457612,86.949,86.855,16.57694003]
[1773329998247,10.351,86.938,86.866,16.57694003]
[1773329999250,10.352,86.928,86.866,16.57694003]
[1773329999754,16.23457612,86.949,86.878,16.57694003]
[1773329999954,16.23457612,86.969,86.88,16.57694003]
[1773330000159,16.23457612,86.949,86.88,16.57694003]
[1773330000361,10.35,86.947,86.88,26.93494003]
[1773330000563,16.23457612,86.969,86.881,16.57694003]
[1773330001061,16.23457612,86.967,86.881,16.57694003]
[1773330001365,160.733,87.097,86.881,16.57694003]
[1773330001366,16.23457612,86.949,86.881,16.57694003]
[1773330001661,16.23457612,86.929,86.861,16.57694003]
[1773330002460,16.23457612,86.928,86.861,16.57694003]
[1773330002756,16.23457612,86.909,86.821,16.57694003]
[1773330002962,16.23457612,86.905,86.821,16.57694003]
[1773330003462,10.357,86.888,86.823,10.365]
[1773330003664,16.23457612,86.888,86.821,16.57694003]
[1773330003860,9.08768917,86.89,86.821,16.57694003]
[1773330004155,16.23457612,86.889,86.821,16.57694003]
[1773330004355,16.23457612,86.889,86.841,10.363]
[1773330004555,16.23457612,86.909,86.841,10.363]
[1773330005361,10.355,86.908,86.841,26.93994003]
[1773330005556,9.08768917,86.93,86.85,9.08768917]
[1773330005756,16.23457612,86.932,86.85,9.08768917]
[1773330005757,9.08768917,86.95,86.851,56.45694003]
[1773330006061,16.23457612,86.954,86.871,16.57694003]
[1773330007063,9.08768917,86.97,86.871,16.57694003]
[1773330007262,16.23457612,86.969,86.871,16.57694003]
[1773330007459,16.23457612,86.969,86.917,10.354]
[1773330007763,193.83712217,86.991,86.919,16.57694003]
[1773330007959,193.83712217,86.991,86.921,16.57694003]
[1773330008154,16.23457612,86.989,86.921,16.57694003]
[1773330008559,16.23457612,86.986,86.918,10.354]
[1773330008759,16.23457612,86.986,86.919,16.57694003]
[1773330008968,193.83712217,86.991,86.919,16.57694003]
[1773330009157,9.08768917,86.99,86.928,16.57694003]
[1773330009359,16.23457612,86.989,86.907,16.57694003]
[1773330009566,16.23457612,86.989,86.701,27.02453286]
[1773330009567,16.23457612,86.929,86.858,16.57694003]
[1773330009861,16.23457612,86.929,86.821,16.57694003]
[1773330010060,16.23457612,86.929,86.841,16.57694003]
[1773330010261,10.352,86.928,86.862,26.93694003]
[1773330010457,10.352,86.928,86.863,16.57694003]
[1773330010968,10.353,86.924,86.863,16.57694003]
[1773330011160,16.23457612,86.965,86.863,16.57694003]
[1773330011359,10.45877896,87.039,86.837,161.212]
[1773330011360,9.08768917,86.98,86.899,16.57694003]
[1773330011558,16.23457612,86.979,86.899,16.57694003]
[1773330012265,16.23457612,86.978,86.899,16.57694003]
[1773330012471,9.08768917,87.0,86.899,16.57694003]
[1773330012659,9.08768917,87.0,86.911,16.57694003]
[1773330012660,16.23457612,86.998,86.911,16.57694003]
[1773330013664,16.23457612,86.979,86.911,16.57694003]
[1773330013865,16.23457612,86.964,86.891,16.57694003]
[1773330014559,16.23457612,86.964,86.908,10.355]
[1773330014761,16.23457612,86.988,86.891,16.57694003]
[1773330014964,16.23457612,86.988,86.911,16.57694003]
[1773330015170,16.23457612,86.988,86.931,10.352]
[1773330015567,10.346,86.978,86.912,10.354]
[1773330015761,16.23457612,86.988,86.911,16.57694003]
[1773330016567,16.23457612,86.988,86.899,39.86]
[1773330016870,16.23457612,86.966,86.887,16.57694003]
[1773330017863,16.23457612,87.007,86.887,16.57694003]
[1773330018266,39.86,87.017,86.887,16.57694003]
[1773330018267,16.23457612,86.967,86.887,16.57694003]
[1773330018573,16.23457612,86.99,86.887,16.57694003]
[1773330018976,14.77632991,87.008,86.921,10.353]
[1773330018977,16.23457612,86.979,86.921,10.353]
[1773330019175,16.23457612,86.979,86.887,16.57694003]
[1773330019468,16.23457612,86.969,86.835,16.57694003]
[1773330019670,16.23457612,86.969,86.792,161.295]
[1773330019671,16.23457612,86.924,86.838,16.57694003]
[1773330020170,14.56947868,86.922,86.838,16.57694003]
[1773330021467,14.56947868,86.949,86.859,15.96102722]
[1773330021868,10.353,86.923,86.86,10.36]
[1773330022271,14.56947868,86.969,86.859,15.96102722]
[1773330022475,14.56947868,86.945,86.859,15.96102722]
[1773330022676,14.56947868,86.945,86.839,55.82102722]
[1773330022877,14.56947868,86.945,86.84,15.96102722]
[1773330023079,14.56947868,86.945,86.864,26.32102722]
[1773330023574,14.56947868,86.939,86.874,10.359]
[1773330024176,14.56947868,86.939,86.864,15.96102722]
[1773330024772,24.92047868,86.937,86.864,15.96102722]
[1773330024979,14.56947868,86.937,86.864,15.96102722]
[1773330025286,10.352,86.936,86.873,10.359]
[1773330025475,14.56947868,86.937,86.864,15.96102722]
[1773330025877,14.56947868,86.957,86.864,15.96102722]
[1773330026480,14.56947868,86.944,86.864,15.96102722]
[1773330026879,14.56947868,86.944,86.844,15.96102722]
[1773330027075,14.56947868,86.934,86.844,15.96102722]
[1773330027778,14.56947868,86.969,86.887,10.357]
[1773330027983,14.56947868,86.963,86.887,10.357]
[1773330028481,14.56947868,86.942,86.877,10.358]
[1773330028677,14.56947868,86.942,86.849,15.96102722]
[1773330028872,14.56947868,86.942,86.876,10.358]
[1773330029273,14.56947868,86.924,86.871,10.359]
[1773330029477,9.26879792,86.967,86.849,15.96102722]
[1773330029478,9.37863188,86.949,86.849,15.96102722]
[1773330029689,14.56947868,86.948,86.849,15.96102722]
[1773330029978,14.56947868,86.939,86.878,10.358]
[1773330030180,14.56947868,86.939,86.852,15.96102722]
[1773330030386,14.56947868,86.939,86.829,39.86]
[1773330030387,14.56947868,86.939,86.879,15.96102722]
[1773330030580,14.56947868,86.952,86.879,15.96102722]
[1773330030782,14.56947868,86.952,86.855,15.96102722]
[1773330030977,14.56947868,86.927,86.855,15.96102722]
[1773330031485,14.56947868,86.947,86.881,15.96102722]
[1773330031879,14.56947868,86.967,86.881,15.96102722]
[1773330032082,9.39494188,86.968,86.881,15.96102722]
[1773330032083,14.56947868,86.965,86.881,15.96102722]
[1773330032485,14.56947868,86.951,86.892,10.357]
[1773330032886,14.56947868,86.951,86.858,15.96102722]
[1773330033188,14.56947868,86.951,86.882,15.96102722]
[1773330033587,14.56947868,86.951,86.913,10.354]
[1773330034386,34.71271184,86.98,86.86,34.71271184]
[1773330034387,14.56947868,86.968,86.904,15.96102722]
[1773330034689,14.56947868,86.968,86.875,15.96102722]
[1773330034885,10.45877896,86.998,86.855,15.96102722]
[1773330034886,14.56947868,86.939,86.855,15.96102722]
[1773330035085,14.56947868,86.937,86.855,15.96102722]
[1773330035280,14.56947868,86.936,86.855,15.96102722]
[1773330035481,14.56947868,86.917,86.861,10.36]
[1773330035988,14.56947868,86.917,86.83,29.81068504]
[1773330035989,14.56947868,86.917,86.835,15.96102722]
[1773330036182,14.56947868,86.914,86.861,10.36]
[1773330036384,14.56947868,86.914,86.835,15.96102722]
[1773330036688,14.56947868,86.914,86.874,10.359]
[1773330036886,14.56947868,86.914,86.837,15.96102722]
[1773330037785,14.56947868,86.948,86.874,15.96102722]
[1773330037985,14.56947868,86.948,86.854,15.96102722]
[1773330038182,14.56947868,86.929,86.854,15.96102722]
[1773330038890,14.56947868,86.929,86.884,10.358]
[1773330039087,14.56947868,86.949,86.854,15.96102722]
[1773330039292,14.56947868,86.949,86.871,15.96102722]
[1773330039788,39.86,86.952,86.871,15.96102722]
[1773330039789,14.56947868,86.939,86.871,15.96102722]
[1773330039988,14.56947868,86.929,86.88,10.358]
[1773330040292,18.28800632,86.951,86.851,15.96102722]
[1773330040293,14.56947868,86.919,86.851,15.96102722]
[1773330040682,14.56947868,86.916,86.831,15.96102722]
[1773330040988,14.56947868,86.879,86.812,15.96102722]
[1773330041493,14.56947868,86.879,86.815,10.366]
[1773330041893,14.56947868,86.879,86.812,15.96102722]
[1773330042290,54.42947868,86.899,86.812,15.96102722]
[1773330042488,14.56947868,86.899,86.812,15.96102722]
[1773330042888,14.56947868,86.89,86.812,15.96102722]
[1773330043591,15.50437253,86.879,86.812,15.96102722]
[1773330044190,15.50437253,86.879,86.828,10.364]
[1773330044494,15.50437253,86.879,86.812,15.96102722]
[1773330046494,15.50437253,86.879,86.789,14.23318149]
[1773330046693,15.50437253,86.859,86.789,14.23318149]
[1773330047497,15.50437253,86.879,86.791,14.23318149]
[1773330047693,15.50437253,86.869,86.791,14.23318149]
[1773330048198,15.50437253,86.858,86.771,14.23318149]
[1773330049196,9.08898377,86.87,86.791,14.23318149]
[1773330049395,15.50437253,86.877,86.791,14.23318149]
[1773330049693,9.08898377,86.87,86.817,10.366]
[1773330049896,15.50437253,86.877,86.791,14.23318149]
[1773330050093,15.50437253,86.869,86.791,14.23318149]
[1773330050693,15.0310948,86.888,86.791,14.23318149]
[1773330051690,15.0310948,86.886,86.791,14.23318149]
[1773330051892,15.0310948,86.869,86.791,14.23318149]
[1773330052093,15.0310948,86.857,86.791,10.369]
[1773330052295,15.0310948,86.849,86.771,15.31970964]
[1773330052698,15.0310948,86.849,86.781,15.31970964]
[1773330052896,15.0310948,86.868,86.781,15.31970964]
[1773330053601,15.0310948,86.868,86.81,10.366]
[1773330054195,15.0310948,86.868,86.799,10.368]
[1773330054391,15.0310948,86.868,86.781,15.31970964]
[1773330054803,15.0310948,86.849,86.788,10.369]
[1773330054994,15.0310948,86.849,86.761,15.31970964]
[1773330055594,15.0310948,86.839,86.761,15.31970964]
[1773330056299,15.0310948,86.839,86.792,10.369]
[1773330056802,15.0310948,86.859,86.781,15.31970964]
[1773330057003,15.0310948,86.859,86.811,10.366]
[1773330057405,15.0310948,86.859,86.781,15.31970964]
[1773330058204,39.88,86.909,86.805,15.31970964]
[1773330058205,15.0310948,86.889,86.805,15.31970964]
[1773330059110,15.0310948,86.886,86.83,10.364]
[1773330059504,15.0310948,86.886,86.805,15.31970964]
[1773330060205,9.08898377,86.89,86.805,15.31970964]
[1773330060206,15.0310948,86.884,86.818,10.365]
[1773330060408,15.0310948,86.884,86.805,15.31970964]
[1773330060708,15.0310948,86.863,86.797,10.368]
[1773330060911,15.0310948,86.849,86.761,15.31970964]
[1773330061111,15.0310948,86.829,86.761,15.31970964]
[1773330061405,15.0310948,86.829,86.776,10.371]
[1773330062214,9.08898377,86.87,86.749,39.88]
[1773330062215,15.0310948,86.849,86.779,15.31970964]
[1773330062715,48.96898377,86.87,86.789,10.369]
[1773330062716,15.0310948,86.846,86.789,10.369]
[1773330062913,15.0310948,86.846,86.744,20.749]
[1773330062914,15.0310948,86.839,86.759,15.31970964]
[1773330063306,15.0310948,86.828,86.77,10.371]
[1773330063513,15.0310948,86.848,86.761,15.31970964]
[1773330063915,15.0310948,86.848,86.781,15.31970964]
[1773330064218,15.0310948,86.839,86.761,15.31970964]
[1773330064622,15.0310948,86.819,86.731,15.31970964]
[1773330064917,9.08898377,86.81,86.731,15.31970964]
[1773330065308,24.12007857,86.81,86.731,15.31970964]